Workbook

Sheet Hoja1
A21: Hospital General de Especialidades Dr. Mario Tolentino Dipp
A24: Estados Financieros Al 31 de Agosto del 2025
A30: Agosto, 2025
A31: Santo Domingo de Guzmán
A32: República Dominicana
A46: 1. Entidad Económica
A48: El Hospital General de Especialidades Dr. Mario Tolentino Dipp es una institución que ofrece servicios de salud a traves de los Servicios Regionales organizados en Red, de acuerdo a los valores y principios del Modelo de Atención, para contribuir a la salud de las personas, familias y comunidades.
A52: El Hospital General de Especialidades Dr. Mario Tolentino Dipp tiene su domicilio en la Av. Konrad Adenauer, Santo Domingo Norte, Santo Domingo, R.D.
A55: Los principales directores del Hospital General de Especialidades Dr. Mario Tolentino Dipp son los siguientes:
A57: Nombre | C57: Cargo
A59: Miguel A. Guzmán Fermín | C59: Director General
A60: Kelvin Modesto Segura | C60: Director Financiero Administrativo
A61: Veronica pastranos peña | C61: Contador
A63: 2. Base de Presentación
A65: Los estados financieros han sido preparados de conformidad con las Normas Internacionales de Contabilidad del Sector Público (NICSP), adoptadas por el Hospital General de Especialidades Dr. Mario Tolentino Dipp.
A68: El Hospital General de Especialidades Dr. Mario Tolentino Dipp presenta su presupuesto aprobado según la base contable de efectivo y los estados financieros sobre la base de acumulación (o devengado) conforme a las estipulaciones de las Normas Internacionales de Contabilidad del Sector Público: Presentación de Información del Presupuesto en los Estados Financieros (NICSP No. 24).
A73: El presupuesto se aprueba según la base contable de efectivo siguiendo una clasificación de pago por objeto. El presupuesto aprobado cubre el período fiscal que va desde el 1ro. de enero hasta al 31 de diciembre de 2025 y es incluido como información suplementaria en los estados financieros y sus notas.
A80: La emisión y aprobación final de los estados financieros está autorizada por el Director Ejecutivo.
A84: 3. Moneda Funcional y de Representación
A86: Los estados financieros están presentados en pesos dominicanos (RD$) que es la moneda funcional de la Entidad.
A89: 4. Uso de estimados y juicios
A91: La preparación de los Estados Financieros de conformidad con las Normas Internacionales de Contabilidad del Sector público (NICSP) requiere que la administración realice juicios, estimaciones y supuestos que afectan la aplicación de las políticas contables y los montos de los elementos de los estados financieros (activos, pasivos, ingresos y gastos) reportados. Los resultados reales pueden diferir de estas estimaciones.
A97: Las estimaciones y supuestos relevantes son revisados regularmente, los efectos de estas revisiones son reconocidas prospectivamente.
A100: Medición de los valores razonables
A102: La Entidad cuenta con un marco de control establecido en relación con el cálculo de los valores razonables y tiene la responsabilidad general por la supervisión de todas las mediciones significativas de éste, incluyendo los de Nivel 3.
A106: Cuando se mide el valor razonable de un activo o pasivo, el Hospital General de Especialidades Dr. Mario Tolentino Dipp utiliza, siempre que sea posible, precios cotizados en un mercado activo.
A109: Si el mercado para un activo o pasivo no es activo, la Entidad establecerá el valor razonable utilizando una técnica de valoración. Con ésta se busca establecer cuál sería, a la fecha de medición, el precio de una transacción realizada.
A113: Los valores se clasifican en niveles distintos dentro de una jerarquía como sigue:
A115: Nivel 1: Precios cotizados (no-ajustados) en mercados activos para activos o pasivos idénticos
A117: Nivel 2: Datos diferentes de los precios cotizados incluidos en el Nivel 1, que sean observables para el activo o pasivo, ya sea directa (precios) o indirectamente (derivados de los precios).
A120: Nivel 3: Datos para el activo o pasivo que no se basan en datos de mercado observables (variables no observables).
A124: Si las variables usadas para medir el valor razonable de un activo o pasivo pueden clasificarse en niveles distintos de la jerarquía del valor razonable, entonces la medición se clasifica en su totalidad en el mismo nivel de la jerarquía que la variable de nivel más bajo que sea significativa para la medición total.
A128: El Hospital General de Especialidades Dr. Mario Tolentino Dipp reconoce las transferencias entre los niveles de la jerarquía del valor razonable al final del período sobre el que se informa durante el que ocurrió el cambio.
A132: 5. Base de medición
A134: Estos estados financieros han sido preparados sobre la base del costo histórico.
A136: 6. Resumen de políticas contables significativas
A138: Aquí se detalla todo lo relacionado con las principales políticas contables significativas, aplicadas consistentemente a los períodos sobre los que se informa.
A141: Cuentas por cobrar y por pagar
A143: Las cuentas por cobrar serán medidas en el reconocimiento inicial, a la cantidad original de la facturación, si el defecto de la facturación es inmaterial. En caso de que el descuento sea material, las cuentas por cobrar serán medidas al valor razonable.
A147: Los pasivos son reconocidos cuando se ha recibido el bien o servicio que los genera, independiente del momento en el que se realiza el pago.
A150: Los pasivos son dados de baja cuando los compromisos son saldados o expira el compromiso.

Sheet ERF SRS
C5: HOSP. GNRAL DE ESPECIALIDAD DR, MARIO TOLENTINO DIPP
C6: Estado de Rendimiento Financiero
D7: Del ejercicio terminado Al 31 de AGOSTO 2025
C8: (Valores en RD$)
F10: 2025 | H10: =+[1]ESF!H7 -> 2016
C11: Ingresos (Nota 17)
A12: 0035 | D12: Impuestos
A13: 0036 | D13: Ingresos por transacciones con contraprestación
A14: 0037 | D14: Transferencias | F14: =[2]Ingresos!B32 -> 11,052,240
A15: 0038 | D15: Recargos, multas y otros ingresos
C16: Total ingresos | F16: =SUM(F12:F15) -> 11,052,240 | H16: =SUM(H12:H15) -> 0
C18: Gastos (Notas 18, 19, 20, 21 y 22)
A19: 0039 | D19: Sueldos, salarios y beneficios a empleados | F19: ='[2]Total Gasto'!B12 -> 6,215,913
A20: 0040 | D20: Subvenciones y otros pagos por transferencias
A21: 0041 | D21: Suministros y materiales para consumo | F21: ='[2]Total Gasto'!B36 -> 5,044,799
A22: 0042 | D22: Gasto de depreciación y amortización | F22: ='[2]Total Gasto'!B45 -> 830,000
A23: 0043 | D23: Deterioro del valor de propiedad, planta y equipo
A24: 0044 | D24: Otros gastos(Servicios no Personales) | F24: ='[2]Total Gasto'!B25 -> 9,887,616
A25: 0045 | D25: Gastos financieros | F25: ='[2]Total Gasto'!B52 -> 45,930 | H25: =SUMIF([1]BC!B:B,[1]ERF!A22,[1]BC!G:G) -> 
C26: Total gastos | F26: =SUM(F19:F25) -> 22,024,258 | H26: =SUM(H19:H25) -> 
F27: 0
A28: 0046 | D28: Ganancia (pérdida) por diferencia cambiaria | F28: 0 | H28: 0
A30: 0047 | D30: Participación en resultado de asociadas | F30: 0 | H30: 0
C32: Resultados positivos (ahorro) / negativo (desahorro) | F32: =+F16-F26+F28+F30 -> (10,972,018) | H32: =+H16-H26+H28+H30 -> 
C34: Atribuible a:
A35: 0048 | D35: Propietarios de la entidad controladora | F35: 0 | H35: 0
A36: 0049 | D36: Intereses minoritarios | F36: 0 | H36: 0
F37: =SUM(F35:F36) -> 0 | H37: =SUM(H35:H36) -> 0

Sheet ESF SNS
C7: HOSP. GNRAL DE ESPECIALIDAD DR, MARIO TOLENTINO DIPP
C8: Estado de Situación Financiera
C9: Del ejercicio terminado al 31 de Agosto 2025
F13: 2025 | H13: =+[1]BC!G11 -> 2016
A14: Mapeo | C14: Activos
C15: Activos corrientes
A16: 0001 | D16: Efectivo y equivalentes de efectivo (Nota 7) | F16: =[2]Efectivo!C41 -> 11,052,240
A17: 0002 | D17: Inversiones a corto plazo (Nota 8)
A18: 0003 | D18: Porción corriente de documentos por cobrar (Nota 9)
A19: 0004 | D19: Cuenta por cobrar a corto plazo (Notas 8) | F19: ='[2]Cuenta por Cobrar'!B21 -> 16,124,413
A20: 0005 | D20: Inventarios (Nota 9) | F20: =[2]Inventario!B16 -> 74,745,370
A21: 0006 | D21: Pagos anticipados (Nota 12)
A22: 0007 | D22: Otros activos corrientes (Nota 13)
C23: Total activos corrientes | F23: =SUM(F15:F22) -> 101,922,023 | H23: =SUM(H15:H22) -> 0
C25: Activos no corrientes
A26: 0008 | D26: Cuentas por cobrar a largo plazo (Notas 14) | F26: 0
A27: 0009 | D27: Documentos por cobrar (Nota 15)
A28: 0010 | D28: Inversiones a largo plazo (Nota 16)
A29: 0011 | D29: Otros activos financieros (Notas 17)
A30: 0012 | D30: Mobiliarios y equipos neto (Nota 10) | F30: ='[2]Mobiliario Eq. Ofc.'!H26 -> 168,946,923
A31: 0013 | D31: Activos intangibles (Nota 10)
A32: 0014 | D32: Otros activos no financieros (Nota 20)
C33: Total activos no corrientes | F33: =SUM(F26:F32) -> 168,946,923 | H33: =SUM(H26:H32) -> 0
C35: Total activos | F35: =F23+F33 -> 270,868,945 | H35: =SUM(H33,H23) -> 0
C37: Pasivos
C38: Pasivos corrientes
A39: 0015 | D39: Sobregiro bancario (Nota 21)
A40: 0016 | D40: Cuentas por pagar a corto plazo (Nota 11) | F40: ='[2]CXP Corto plazo'!B17 -> 2,161,785
A41: 0017 | D41: Préstamos a corto plazo (Nota 23)
A42: 0018 | D42: Parte corriente de préstamos a largo plazo (Nota 24)
A43: 0019 | D43: Retenciones y acumulaciones por pagar (Nota 12)
A44: 0020 | D44: Provisiones a corto plazo (Nota 26)
A45: 0021 | D45: Beneficios a empleados a corto plazo (Nota 13)
A46: 0022 | D46: Pensiones (Nota 28)
A47: 0023 | D47: Otros pasivos corrientes (Nota 29)
C48: Total pasivos corrientes | F48: =SUM(F39:F47) -> 2,161,785 | H48: =SUM(H39:H47) -> 0
C50: Pasivos no corrientes
A51: 0024 | D51: Cuentas por pagar a largo plazo (Nota 14) | F51: ='[2]CXP Largo Plazo'!B16 -> 1,834,392
A52: 0025 | D52: Préstamos a largo plazo (Nota 31)
A53: 0026 | D53: Instrumentos de deuda (Nota 32)
A54: 0027 | D54: Provisiones a largo plazo (Nota 33)
A55: 0028 | D55: Beneficios a empleados a largo plazo (Nota 15)
A56: 0029 | D56: Otros pasivos no corrientes (Nota 35)
C57: Total pasivos no corrientes | F57: =+F51+F55 -> 1,834,392
C58: Total pasivos | F58: =+F48+F57 -> 3,996,177 | H58: =SUM(H48,H57) -> 0
C60: Activos Netos/Patrimonio (Nota 16)
A61: 0030 | D61: Capital | F61: =[2]Patrimonio!B14 -> 266,872,768
A62: 0031 | D62: Reservas
A63: 0032 | D63: Resultados positivos (ahorro) / negativo (desahorro)
A64: 0033 | D64: Resultados acumulados
A65: 0034 | D65: Intereses minoritarios
C66: Total activos netos/patrimonio | F66: =+F61+F63+F64 -> 266,872,768
C68: Total pasivos y activos netos/patrimonio | F68: =+F58+F66 -> 270,868,945 | H68: =+H58+H66 -> 0 | J68: =+F35-F68 -> 0
D77: Licda. Veronica pastranos | F77: Kelvin modesto Segura Herasme
D78: Encargado de Contabilidad | F78: Director Financiero

Sheet EFECTIVO
B6: HOSP. GNRAL DE ESPECIALIDAD DR, MARIO TOLENTINO DIPP
B7: Nota # 7: Efectivo Caja y Bancos
B8: Del ejercicio terminado Al 31 de Agosto 2025
B9: (Valores en RD$)
A12: # Cta. | B12: Nombre de cuenta | C12: Monto
B15: Caja Chica | C15: 0
A16: 300105134 | B16: Operaciones Ex PSS
B17: Fondo Salud Ex-PSS | C17: 0
A18: 160-112014 | B18: Servicio Nacional de Salud (Fondos Senasa)
A19: 314-0000776 | B19: Fondo Operativo | C19: 0
A20: 240-020561-7 | B20: Cuenta Nueva Ranchito
A21: 314-00145-4 | B21: Fondos Especiales CDC
A22: 314-0000920-0 | B22: Cuenta VIH | C22: 0
A23: 314-000181-0 | B23: Cuenta Tuberculosis | C23: 0
B24: Venta de Servicios | C24: 11,052,239.83
B25: Cuenta Proyecto FGRSS(BID)
B26: Anticipo Financieros
B27: Cta. Nomina | C27: 0 | F27: 0
B28: Total balance cuentas de bancarias del Reservas | C28: =C18+C22+C23+C24+C25+C26+C15 -> 11,052,239.83
A31: # Cta. | B31: Tesoreria Nacional | C31: Monto
A32: 9995028000 | B32: Fondo de la Direccion Central Servicio Nacional de Salud
A33: 9995028001 | B33: Sud- Cuenta Cuota de Pago Direccion Central Servicio Nacional de Salud
A34: 2110003000 | B34: Cuenta Direccion Central SNS
A35: 9998014000 | B35: Recaudacion Establecimiento de Salud PSS
B36: Cuenta Colectora Recursos Directos PSS | C36: 0
A37: 100198000 | B37: Sud- Cuenta Disponibilidad Direccion Central Servicio Nacional de Salud
A38: 100198001 | B38: Sub-Cuota de Pago Direccion Central Servicio Nacional de Salud
B39: Total balance cuentas de bancarias tesoreria nacional | C39: 0
B41: Total efectivo y equivalentes de efectivo | C41: =+C28+C39 -> 11,052,239.83

Sheet INVENTARIO
A6: HOSP. GNRAL DE ESPECIALIDAD DR, MARIO TOLENTINO DIPP
A7: Nota # 9: Inventario
A8: Del ejercicio terminado Al 31 de Agosto 2025
A12: Descripción | B12: Monto
A13: Inventario de Útiles y Suministro de Oficina | B13: 25,351,421.30
A14: Inventario Medicamentos | B14: 46,256,131.54
A15: Inventario de Material Med. Quirurjicos. | B15: 3,137,817.50
A16: Total Inventario | B16: =B13+B14+B15 -> 74,745,370.34

Sheet INGRESOS
A5: HOSP. GNRAL DE ESPECIALIDAD DR, MARIO TOLENTINO DIPP
A6: Nota 17: Ingresos
A7: Del ejercicio terminado Al 31 de Agosto 2025
A8: (Valores en RD$)
A11: Ingresos con Contraprestacion de Servicios | B11: Monto
A13: Venta de Servicios | B13: 11,052,239.83
A14: Sub-Total | B14: =SUM(B13) -> 11,052,239.83
A16: Ingresos sin Contraprestacion de Servicios | B16: 0
A17: Otros Ingresos | B17: 0
A18: Operaciones Ex PSS
A19: Fondo Salud Ex-PSS
A20: Fondo Operativo
A21: Cuenta Nueva Ranchito
A22: Fondos Especiales CDC
A23: Cuenta VIH
A24: Cuenta Tuberculosis
A25: Cuenta Proyecto FGRSS(BID) | B25: 0
A26: Anticipo Financieros | B26: 0
A27: Otros Ingresos
A28: Otras Donaciones Corrientes(Medicamentos) | B28: 0
A29: Cuenta Direccion Central SNS
A30: Sud- Cuenta Disponibilidad Direccion Central Servicio Nacional de Salud
A31: Sub-Total | B31: =SUM(B17:B30) -> 0.00
A32: Total | B32: =+B14+B31 -> 11,052,239.83

Sheet CXP Corto plazo
A6: HOSP. GNRAL DE ESPECIALIDAD DR, MARIO TOLENTINO DIPP
A7: Nota # 11: Cuentas por Pagar a Corto Plazo
A8: Del ejercicio terminado Al 31 de Agosto 2025
A9: (Valores en RD$)
A13: Detalle | B13: Monto
A14: Fondos en Consignacion a Pagar | B14: 0
A15: Transferencia sector Publico por Pagar | B15: 0
A16: Cuentas por Pagar Suplidores | B16: 2,161,784.74
A17: Total Cuentas Por Pagar a Corto Plazo | B17: =+B16+B14+B15 -> 2,161,784.74

Sheet Cuenta por Cobrar
A5: HOSP. GNRAL DE ESPECIALIDAD DR, MARIO TOLENTINO DIPP
A6: Notas # 8: Cuenta Por Cobrar
A7: Del ejercicio terminado Al 31 de Agosto 2025
A8: (Valores en RD$)
A12: Detalle | B12: Monto
A15: Cuentas Por Cobrar Colaboradores
A16: Otras Cuentas Por Cobrar (Retencion IR-3)
A17: Cuentas por Cobrar Hospital Mario Tolentino Dipp
A18: Cuentas por Cobrar Proyecto FGBRSS
A19: Cuentas por Cobrar Ventas de Servicios | B19: 16,124,412.65
A20: Anticipos financieros | B20: 0
A21: Total Cuentas Por Cobrar | B21: =B15+B16+B18+B19+B20+B17 -> 16,124,412.65

Sheet CXP Largo Plazo
A6: HOSP. GNRAL DE ESPECIALIDAD DR, MARIO TOLENTINO DIPP
A7: Nota #14: Cuentas por Pagar Largo Plazo
A8: Del ejercicio terminado Al 31 de Agosto 2025
A9: (Valores en RD$)
A13: Detalle | B13: Monto
A14: Cuentas por Pagar Largo Plazo | B14: 1,834,392.16
A16: Total Cuentas Por Pagar a Largo Plazo | B16: =SUM(B14:B15) -> 1,834,392
A38: Licda: veronica pastranos peña Kelvin Modesto Segura
A39: Encargado de Contabilidad | B39: Director Financiero

Sheet DEUDA DEL MES DE AGOSTO
B1: Deuda del Hospital G. de Especialidades Dr. Mario Tolentino Dipp mes de Agosto 2025
B4: NOMBRE DE OFERETES | C4: DESCRIPCION | D4: ITEBIS 18% | E4: COMPROBANTE G | F4: FECHA DE FACT | G4: MONTO FACTURADO
A5: 1 | B5: GERENFAR, S.R.L. | C5: ADQUISICION DE MEDICAMENTOS PARA USO EN EL HOSPITAL | E5: B1500001303 | F5: 2025-01-08 | G5: $50,000.00
A6: 2 | B6: SILVE PHARMA SRL | C6: ADQUISICION DE MEDICAMENTOS PARA USO EN EL HOSPITAL | E6: B1500001191 | F6: 2025-01-08 | G6: $45,550.00
A7: 3 | B7: AGUASVIVAS | C7: SERVICION DE ANALISIS MICROBILOGICO DEL AGUA POTABLE PARA USO EN EL HOSPITAL | E7: B1500000447 | F7: 2025-01-08 | G7: $170,400.00
A8: 4 | B8: FEC, BIOMEDICAL S.R.L | C8: SERVICIO DE MANTENIMIENTO A CENTRO DE MONITOREO AREA DE UCI DEL HOSPITAL | E8: B1500000507 | F8: 2025-01-08 | G8: $88,736.00
A9: 5 | B9: GRUPO ANTACE SRL | C9: ADQUISICION DE DESECHABLES BLANCO PARA USO EN LA COSINA DEL HOSPITAL | D9: $29,365.20 | E9: B1500000444 | F9: 2025-01-08 | G9: $192,505.20
A10: 6 | B10: PROSERMEDINT,SRL | C10: ADQUISICION DE ALIMENTOS PARA ACTIVIDAD DE LA EMFERMERA | D10: $17,928.00 | E10: B1500000003 | F10: 2025-01-08 | G10: $117,528.00
A11: 7 | B11: COPEM HOSPICLINIC | C11: ADQUISICION DE MEDICAMENTOS PARA USO EN EL HOSPITAL | E11: E450000000128 | F11: 2025-01-08 | G11: $45,200.00
A12: 8 | B12: FARMADAL | C12: ADQUISICION DE MEDICAMENTOS PARA USO EN EL HOSPITAL | E12: B1500002373 | F12: 2025-01-08 | G12: $188,965.00
A13: 9 | B13: RAMIREZ SOLUCIONES | C13: ADQUISICION DE MEDICAMENTOS PARA USO EN EL HOSPITAL | E13: E450000000077 | F13: 2025-01-08 | G13: $72,000.00
A14: 10 | B14: MEDINA BRAND Y ASOCIADOS, SRL | C14: ADQUISICION DE ALIMENTOS PARA USO EN EL HOSPITAL | E14: B1500000004 | F14: 2025-01-08 | G14: $86,900.00
A15: 11 | B15: SEA DOMINICANA | C15: ADQUISICION DE MEDICAMENTOS PARA USO EN EL HOSPITAL | E15: E450000000098 | F15: 2025-01-08 | G15: $460,000.00
A16: 12 | B16: SOLUCORP | C16: SERVICIO DE MANTENIMIENTO PARA CONDESADOR | D16: $12,420.00 | E16: B1500000374 | F16: 2025-01-08 | G16: $81,420.00
A17: 13 | B17: SOLUCORP | C17: ADQUISICION DE DESIFECTANTE PARA USO EN EL HOSPITAL | D17: $66,621.64 | E17: B1500000375 | F17: 2025-01-08 | G17: $436,741.87
A18: 14 | B18: SOLUCORP | C18: ADQUISICION DE PAQUETE DE 50 DISCOS DVD-R PARA USO EN EL HOSPITAL | D18: $37,125.00 | E18: B150000376 | F18: 2025-01-08 | G18: $243,375.00
A19: 15 | B19: OBELCA SRL | C19: SERVICION MANTENIMIENTO CORRECTIVO GENERADO N.1,2,3,4 CARTEPILLA EN EL HOSPITAL | D19: $36,288.00 | E19: B150000925 | F19: 2025-04-08 | G19: $237,888.00
A20: 16 | B20: PROMESE-CAL | C20: ADQUISICION DE MEDICAMENTOS PARA USO EN EL HOSPITAL | E20: B1500046940 | F20: 2025-05-08 | G20: $197,325.60
A21: 17 | B21: BIO-NOVA SRL | C21: ADQUISICION DE MEDICAMENTOS PARA USO EN EL HOSPITAL | D21: $3,338.82 | E21: B1500017623 | F21: 2025-10-08 | G21: $163,841.82
A22: 18 | B22: BIO-NOVA SRL | C22: ADQUISICION DE MEDICAMENTOS PARA USO EN EL HOSPITAL | D22: $7,126.56 | E22: B1500017569 | F22: 2025-04-08 | G22: $592,602.56
A23: 19 | B23: SUPLIMED | C23: ADQUISION DE MEDICAMENTOS PARA USO EN EL HOSPITAL | D23: $932.04 | E23: E450000000131 | F23: 2025-01-08 | G23: $6,110.04
A24: 20 | B24: CIENTEC | C24: ADQUISICION DE MEDICAMENTOS PARA USO EN EL HOSPITAL | D24: $2,515.14 | E24: B1500007916 | F24: 2025-04-08 | G24: $121,698.14
A25: 21 | B25: UVRO | C25: SERVICIO DE TRANSPORTE DE CAMION PARA USO EN EL HOSPITAL | E25: B1500000487 | F25: 2025-01-08 | G25: $21,000.00
A26: 22 | B26: DOOSPHAMA, SRL | C26: ADQUISICION DE TERMOMETRO ORAL PARA USO EN EL HOSPITAL | E26: B1500000138 | F26: 2025-04-08 | G26: $232,320.00
A27: 23 | B27: CIENTEC | C27: ADQUISICION DE MEDICAMENTOS PARA USO EN EL HOSPITAL | D27: $15,163.20 | E27: B1500007873 | F27: 2025-05-08 | G27: $4,604,661.20
A28: 24 | B28: AQUATEAM DOMINICANA | C28: SERVICIO TECNICO PARA USO EN EL HOSPITAL | D28: $9,450.00 | E28: E450000000003 | F28: 2025-05-08 | G28: $61,950.00
A29: 25 | B29: AQUATEAM DOMINICANA | C29: SERVICIO TECNICO PARA USO EN EL HOSPITAL | D29: $9,451.00 | E29: E450000000004 | F29: 2025-05-08 | G29: $61,951.00
A30: 26 | B30: AQUATEAM DOMINICANA | C30: SERVICIO TECNICO PARA USO EN EL HOSPITAL | D30: $9,452.00 | E30: E450000000005 | F30: 2025-05-08 | G30: $61,952.00
A31: 27 | B31: PROVECAR | C31: SERVICION DE REPARACION DE CAMA EN EL HOSPITAL | D31: $7,272.00 | E31: B1500000298 | F31: 2025-06-08 | G31: $47,672.00
A32: 28 | B32: PROVECAR | C32: ADQUISICION DE HERRAMIENTAS PARA EL AREA DE MANTENIMIENTOS DEL HOSPITAL | D32: $21,906.00 | E32: B1500000299 | F32: 2025-06-08 | G32: $143,606.00
A33: 29 | B33: OBELCA SRL | C33: ADQUISICION DE TERMOSTATO LASEE DE TEMPERATURA PARA USO EN EL HOSPITAL | D33: $25,614.00 | E33: B1500000931 | F33: 2025-06-08 | G33: $167,914.00
A34: 30 | B34: GRUPO FARMACEUTICO CAR-M | C34: ADQUISICION DE MEDICAMENTOS PARA USO EN EL HOSPITAL | E34: E450000000206 | F34: 2025-07-08 | G34: $210,000.00
A35: 31 | B35: MEDIC-INTER, S.R.L | C35: ADQUISICION DE MEDICAMENTOS PARA USO EN EL HOSPITAL | E35: B1500000247 | F35: 2025-05-08 | G35: $196,000.00
A36: 32 | B36: CONFORPRA | C36: ADQUISICION DE DOSIMENTRO EXTERNO PERSONAL PARA EL AREA DE IMÁGENES DEL HDMTD | D36: $6,187.50 | E36: B1500000138 | F36: 2025-01-08 | G36: $40,562.50
A37: 33 | B37: VICANA AGROFINACIERO, SRL | C37: ADQUISICION DE ALIMENTOS PARA USO EN EL HOSPITAL | E37: B1500000117 | F37: 2025-04-08 | G37: $260,494.00
A38: 34 | B38: RAMIREZ SOLUCIONES | C38: ADQUISICION DE MEDICAMENTOS PARA USO EN EL HOSPITAL | E38: E450000000099 | F38: 2025-07-08 | G38: $212,500.00
A39: 35 | B39: VAL-KAMED S.RL. | C39: ADQUISICION DE MEDICAMENTOS PARA USO EN EL HOSPITAL | E39: B1500004405 | F39: 2025-07-08 | G39: $246,400.00
A40: 36 | B40: DUMAS PHAMACEUTICAS SRL | C40: ADQUISICION DE MEDICAMENTOS PARA USO EN EL HOSPITAL | E40: B1500001357 | F40: 2025-05-09 | G40: $126,000.00
A41: 37 | B41: UVRO | C41: SERVICION DE TRANSPORTE DE CAMION PARA USO EN EL HOSPITAL | E41: B1500000490 | F41: 2025-08-08 | G41: $10,500.00
A42: 38 | B42: FULISERVIS SRL | C42: ADQUISICION DE RECETARIOS CLINICOS PARA USO DEL HOSPITAL | E42: B1500000421 | F42: 2025-07-08 | G42: $240,720.00
A43: 39 | B43: TROPIGAS DOMINICA | C43: ADQUISICION DE GAS LICUADO DE PETROLEO PARA USO EN EL HOSPITAL | E43: E450000005458 | F43: 2025-01-08 | G43: $79,320.00
A44: 40 | B44: MORAMI, SRL | C44: ADQUISICION DE MEDICAMENTOS PARA USO EN EL HOSPITAL | E44: B1500006692 | F44: 2025-08-08 | G44: $247,500.00
A45: 41 | B45: PROMESE-CAL | C45: ADQUISICION DE MEDICAMENTOS PARA USO EN EL HOSPITAL | E45: B1500047078 | F45: 2025-08-08 | G45: $50,015.00
A46: 42 | B46: PROMESE-CAL | C46: ADQUISICION DE MEDICAMENTOS PARA USO EN EL HOSPITAL | E46: B1500047076 | F46: 2025-08-08 | G46: $383,390.60
A47: 43 | B47: SECOND HAND IMPORTALEAN S.R.L | C47: ADQUISICION DE CILIDRO PORTATIL FR OXIGENOS Y REGULADORES DE OXIGENO PARA USO EN EL HOSPITAL | D47: $28,794.60 | E47: B1500000040 | F47: 2025-06-08 | G47: $188,764.60
A48: 44 | B48: GRUPO ANTACE SRL | C48: ADQUISICION DE BANCADA PARA SALA DE ESPERA DE 5 SILLAS EN METAL | D48: $32,760.00 | E48: B1500000453 | F48: 2025-11-08 | G48: $214,760.00
A49: 45 | B49: FUMIGACIONES FUMIDEX SRL | C49: SERVICIOS DE FUMIGACION Y CONTROL DE PLAGAS JULIO EN EL HOSPITAL | D49: $36,539.93 | E49: B1500000114 | F49: 2025-11-08 | G49: $239,539.53
A50: 46 | B50: DOOSPHAMA, SRL | C50: ADQUISICION DE TRANEXAMICO 500 MG INYECTABLE VIAL PARA USO EN EL HOSPITAL | E50: B1500000139 | F50: 2025-12-08 | G50: $243,100.00
A51: 47 | B51: AIDSA | C51: SERVICION DE RECOLECTOR DE DESECHOS BIOMEDICOS EN EL HOSPITAL | E51: B1500002216 | F51: 2025-08-08 | G51: $150,000.00
A52: 48 | B52: MEDINA BRAND Y ASOCIADOS, SRL | C52: ADQUISICION DE ALIMENTOS PARA USO EN EL HOSPITAL | D52: $20,260.69 | E52: B1500000005 | F52: 2025-12-08 | G52: $206,707.45
A53: 49 | B53: SOLUCORP | C53: SERVICIO DE REPARACION DE MOTOR DE MANEJADORA PARA USO EN EL HOSPITAL | D53: $25,200.00 | E53: B1500000378 | F53: 2025-12-08 | G53: $165,200.00
A54: 50 | B54: OBELCA SRL | C54: ADQUISICION DE DETECTORES RAYOS X PARA USO EN EL HOSPITAL | D54: $218,700.00 | E54: B1500000933 | F54: 2025-12-08 | G54: $1,433,700.00
A55: 51 | B55: ROJAS Y SERRANO SUPPLIES | C55: ADQUISICION DE RESMAS DE PAPEL BOND 8 1/2X11 PARA USO EN EL HOSPITAL | D55: $36,610.43 | E55: B1500001445 | F55: 13/8/2025 | G55: $240,002.56
A56: 52 | B56: RANTORO | C56: ADQUISICION DE ALIMENTOS PARA USO EN EL HOSPITAL | D56: $13,500.00 | E56: B1500000004 | F56: 13/8/2025 | G56: $247,350.00
A57: 53 | B57: RANTORO | C57: ADQUISICION DE ALIMENTOS PARA USO EN EL HOSPITAL | E57: B1500000005 | F57: 13/8/2025 | G57: $765,200.00
A58: 54 | B58: AYUNTAMIENTO DE SANTO DOMINGO NORTE | C58: SERVICIO DE RECOLECCION DESECHOS SOLIDOS EN EL HOSPITAL | E58: B1500001616 | F58: 2025-11-08 | G58: $25,000.00
A59: 55 | B59: PROSERMEDINT,SRL | C59: ADQUISICION DE ALIMENTOS PARA USO EN EL HOSPITAL | E59: B1500000006 | F59: 13/8/2025 | G59: $133,800.00
A60: 56 | B60: PROSERMEDINT,SRL | C60: ADQUISICION DE ALIMENTOS PARA USO EN EL HOSPITAL | E60: B1500000005 | F60: 13/8/2025 | G60: $105,315.00
A61: 57 | B61: PROSERMEDINT,SRL | C61: ADQUISICION DE ALIMENTOS PARA USO EN EL HOSPITAL | E61: B1500000007 | F61: 14/8/2025 | G61: $224,475.00
A62: 58 | B62: COMPANIA DOMINICANA DE TELEFONO( CLARO) | C62: SERVICIO DE TELEFONICOS PARA USO EN EL HOSPITAL | E62: E310012212120 | F62: 13/8/2025 | G62: $538,142.50
A63: 59 | B63: UVRO | C63: SERVICIO DE TRANSPORTE DE CAMION PARA USO EN EL HOSPITAL | E63: B1500000491 | F63: 14/8/2025 | G63: $10,500.00
A64: 60 | B64: SECOND HAND IMPORTALEAN S.R.L | C64: SERVICIO DE REPARACION DE CAMA DE UIC 2 Y 5 EN EL HOSPITAL | D64: $11,160.00 | E64: B1500000041 | F64: 14/8/2025 | G64: $73,160.00
A65: 61 | B65: FULINSERVIS SRL | C65: ADQUISICION DE ALIMENTOS PARA USO EN EL HOSPITAL | E65: B1500000422 | F65: 15/8/2025 | G65: $225,000.00
A66: 62 | B66: PROMESE-CAL | C66: ADQUISICION DE MEDICAMENTOS PARA USO EN EL HOSPITAL | E66: B1500047311 | F66: 14/8/2025 | G66: $275,387.92
A67: 63 | B67: TROPIGAS DOMINICA | C67: ADQUISICION DE GAS LICUADO DE PETROLEO PARA USO EN EL HOSPITAL | E67: E450000005464 | F67: 15/8/2025 | G67: $138,902.54
A68: 64 | B68: LUZ ESTHER BATISTA PEREZ | C68: ADQUISICION DE PAQUETE DE FUNDAS DE DIFERENTE TAMAÑOS Y COLORES PARA USO EN EL HOSPITAL | E68: B1500001295 | F68: 15/8/2025 | G68: $462,265.00
F71: TOTAL DEL MES | G71: =SUM(G5:G68) -> $17,611,487.63
B77: Licda: veronica pastranos peña | D77: Kelvinn modesto segura
B78: Encargado de Contabilidad | D78: Director Financiero

Sheet INGRESO Y EGRESO
A4: HOSP. GNRAL DE ESPECIALIDAD DR, MARIO TOLENTINO DIPP
A5: Nota # 17: Ingreso y Egreso
A6: Del ejercicio terminado Al 31 de Agosto 2025
A7: Para el periodo terminado el 31 de agosto de 2025 la composición de los ingresos es como sigue:
A9: Detalle | B9: 2025
A10: Al 31 de enero 2023 y 2022 la composición de los ingresos es como sigue:
A12: Detalle
A14: Ingresos Fondo 100 (2.1) | B14: 36,383,583.80
A15: Ingresos Fondo 100 (Para Serv. Objectales.) | B15: 433,333.00
A16: Ingresos por Servicios cafeteria. | B16: 40,000.00
A17: Ingresos por Servicios a extrajero | B17: 111,500.00
A18: Ingresos por Odontologia. | B18: 125,670.00
A19: Ingresos por Servicios ARS | B19: 10,775,069.83
A21: Total Ingresos | B21: =SUM(B14:B20) -> 47,869,156.63
A26: Sueldos, Salarios y beneficios a colaboradores (Nota 12)
A28: La composición de los saldos al 31 de agosto del 2025 es como sigue:
A31: Detalle | B31: 2025
A33: Sueldos Fijos | B33: 37,093,390.12
A34: Sueldo Personal Temporero | B34: 1,465,079.59
A35: Sueldo Personal Retroactivo
A36: Contribuciones a la Seguridad Social | B36: 950,171.63
A38: Contribuciones al Seguro de Riesgo Laboral | B38: 1,006,453.32
A39: Pensiones y Jubilaciones | B39: =+#REF! -> 
A40: Total sueldos, salarios y beneficios a empleados | B40: =B33+B34+B36+B37+B38 -> 40,515,094.66
A44: Suministro y Materiales para consumo (Nota 13)
A46: Detalle | B46: 2025
A48: pagos a suplidores | B48: 14,910,229.17
A49: Total Suministros y materiales para consumo
A50: Total Egreso | B50: =B40+B49 -> $40,515,094.66
A53: Sueldos, Salarios y beneficios a colaboradores (Nota 12)
A55: Ingreso por servicio de las ARS (Nota 12)
A58: Suministro y Materiales para consumo (Nota 13)
A68: Licda. Veronica pastranos
A69: Encargado de Contabilidad | B69: Kelvin modesto Segura Herasme
B70: Director Financiero

Sheet PAGOS DE MES AGOSTO
A9: HOSPITAL GENERAL DE ESPECIALIDADES MARIO TOLENTINO DIPP
A10: RELACION DE LIBRAMIENTO EN PROCESO DE AGOSTO 2025 HOSPITAL DR. MARIO TOLENTINO DIPP
A13: LIBRAMIENTO | B13: NO. | C13: NOMBRE DE OFERENTES | D13: DESCRIPCION | E13: NO. ORDEN DE COMPRA | F13: FONDO | G13: FECHA FACTURA | H13: COMPROBANTE GUBERNAMENTAL | I13: ITEBIS 18% | J13: MONTO FACTURA PENDIENTE RD$
A14: 1333 | B14: 1 | C14: CONTRUMANZ,SRL | D14: FABRICACION DE ESTANTE DE MADETA PARA PROCESO DE COMPRA HDMTD-DAF-CD-2024-0089 | E14: HDMTD-DAF-CD-2024-0089 | F14: 102 | G14: 2024-01-11 | H14: B1500000001 | I14: $24,114.81 | J14: $158,085.96
A15: 1571 | B15: 2 | C15: PROVEEDORES DEL CARIBE PROVECAR SRL | D15: ADQUISICION DE MICROONDAS PARA USO DEL HOSPITAL | E15: HDMTD-DAF-CD-2025-0087 | F15: 426 | G15: 2025-02-07 | H15: B1500000292 | I15: $22,050.00 | J15: $144,550.00
A16: 1619 | B16: 3 | C16: COMERCIALIZADORA KIMARCO,SRL | D16: ADQUISICION DE VEGETALES Y VIVERES PARA USO DEL HOSPITAL | E16: HDMTD-DAF-CM*2024-0061 | F16: 121 | G16: 2025-01-05 | H16: B1500000233 | J16: $221,757.75
A17: 1661 | B17: 4 | C17: JEAN CARLOS BASULTO | D17: ADQUISICION DE INSUMOS DE QUIROFANO | E17: HDMTD-DAF-CD-2025-0092 | F17: 102 | G17: 2025-01-07 | H17: B1500003389 | I17: $12,139.20 | J17: $79,579.20
A18: 1686 | B18: 5 | C18: SOLUCIONES CORPORATIVAS SOLUCORP | D18: ADQUISICION DE SERVICIO DE REPARACION DE ACENSORES | E18: HDMTD-DAF-CM-2025-0051 | F18: 102 | G18: 2025-04-06 | H18: B1500000360 | I18: $63,395.00 | J18: $415,590.00
A19: 1764 | B19: 6 | C19: OBELCA,SRL | D19: SERVICIO DE MANTENIMIENTO ANUAL DE AUTO CLAVE FUERA DESERVICIO | E19: HDMTD-DAF-CM-2024-0088 | F19: 121 | G19: 2025-06-03 | H19: B1500000822 | I19: $9,612.00 | J19: $63,012.00
A20: 1774 | B20: 7 | C20: RANTORO | D20: ADQUISICXION DE ALIMENOS PARA COCINA | E20: HDMTD-DAF-CD-2025-0054 | F20: 121 | G20: 2025-04-07 | H20: B1500000002 | I20: $4,575.36 | J20: $193,144.00
A21: 1796 | B21: 8 | C21: PROGRAMA DE MEDICAMENTOS SENCIALES PROMESE CAL | D21: ADQQUISICION DE MEDICAMENTOS | E21: N/A | F21: 121 | G21: 18/6/2025 | H21: B1500045928 | J21: $216,408.00
A22: 1796 | B22: 9 | C22: PROGRAMA DE MEDICAMENTOS SENCIALES PROMESE CAL | D22: ADQQUISICION DE MEDICAMENTOS | E22: N/A | F22: 121 | G22: 18/6/2025 | H22: B1500045945 | J22: $150,688.00
A23: 1796 | B23: 10 | C23: PROGRAMA DE MEDICAMENTOS SENCIALES PROMESE CAL | D23: ADQQUISICION DE MEDICAMENTOS | E23: N/A | F23: 121 | G23: 25/6/2025 | H23: B1500046051 | J23: $251,881.00
A24: 1807 | B24: 11 | C24: SECOND HAND IMPORT LEAN ,SRL | D24: ADQUISICION DE SAL TIPO PELLETS PARA POTIBILIZACION DEL HOSPITAL | E24: HDMTD-DAF-CM-2025-0084 | F24: 121 | G24: 14/7/2025 | H24: B1500000038 | I24: $73,800.00 | J24: $483,800.00
A25: 1822 | B25: 12 | C25: JEAN CARLOS BASULTO | D25: ADQUISICION DE INSUMOS PARA USO DEL HOSPITAL | E25: HDMTD-DAF-CM-2025-0090 | F25: 121 | G25: 2025-11-07 | H25: B1500003427 | I25: $1,607.40 | J25: $213,962.40
A26: 1841 | B26: 13 | C26: BIO NUCLEAR, SA | D26: ADQUISICION DE ETQUETA PARA USO EN EL HOSPITAL | E26: HDMTD-DAF-CD-2025-0090 | F26: 121 | G26: 2025-11-07 | H26: E450000007028 | I26: $5,931.90 | J26: $38,886.90
A27: 1845 | B27: 14 | C27: CABOD,EIRL | D27: ADQUISICION DE MATERIALES DE LAVANDERIA | E27: HDMTD-DAF-CM-2025-0080 | F27: 121 | G27: 18/7/2025 | H27: B1500001804 | I27: $15,462.00 | J27: $101,362.00
A28: 1845 | B28: 15 | C28: CABOD,EIRL | D28: ADQUISICION DE MATERIALES DE LAVANDERIA | E28: HDMTD-DAF-CM-2025-0080 | F28: 121 | G28: 14/7/2025 | H28: B1500001816 | I28: $11,268.00 | J28: $73,868.00
A29: 1845 | B29: 16 | C29: CABOD,EIRL | D29: ADQUISICION DE MATERIALES DE LAVANDERIA | E29: HDMTD-DAF-CM-2025-0080 | F29: 121 | G29: 157/2025 | H29: B1500001819 | I29: $5,616.00 | J29: $36,816.00
A30: 1850 | B30: 17 | C30: MEDINA BRAND Y ASOCIADOS,SRL | D30: ADQUISICION DE ALIMENTOS DE DESPENSA | E30: HDMTD-DAF-CM-2025-0072 | F30: 121 | G30: 2025-07-07 | H30: B1500000003 | I30: $13,188.88 | J30: $142,293.40
A31: 1854 | B31: 18 | C31: UVRO SOLUCIONES EMPRESARIALES, SRL | D31: SERVICIO DE ALQUILER DE TRASPORTE | E31: HDMTD-DAF-CD-2024-0099 | F31: 102 | G31: 2025-07-17 | H31: B1500000483 | J31: $10,500.00
A32: 1870 | B32: 19 | C32: GLOBAL MEDICA DOMINICANA | D32: SERVICIO DE MANTENIMIENTO CORRECTIVO POR FALLA DE EQUIPO | E32: HDMTD-DAF-CD-2025-0032 | F32: 121 | G32: 2025-09-07 | H32: E45000000024 | I32: $5,892.48 | J32: $38,628.48
A33: 1874 | B33: 20 | C33: SECOND HAND IMPORT LEAN ,SRL | D33: ADQUISICION DE SABANAS Y CUBRE COLCON | E33: HDMTD-DAF-CM-20258-0078 | F33: 121 | G33: 2025-08-07 | H33: B1500000037 | I33: $74,430.00 | J33: $487,930.00
A34: 1878 | B34: 21 | C34: PROVEEDORES DEL CARIBE PROVECAR SRL | D34: ADQUISICION DE BATERIAS PARA GENERADORES ELECTRICOS DEL HOSPITAL | E34: HDMTD-DAF-CD-2025-0097 | F34: 121 | G34: 18/7/2025 | H34: B1500000296 | I34: $21,240.00 | J34: $139,240.00
A35: 1880 | B35: 22 | C35: TROPIGAS DOMINICANA,SRL | D35: SERVICIO DE RELLENADO DE DOS TANQUES GLP,INTALODOS EN EL HOSPITAL | E35: HDMTD-CCC-PEEX-2025-0006 | F35: 121 | G35: 23/7/2025 | H35: E450000002331 | J35: $188,743.00
A36: 1896 | B36: 23 | C36: CIENCIA TECNOLOGIA Y CONSULTAS,SRL | D36: ADQUISICION DE CUBETAS,CREATININA Y ANTI D PARA USO EN EL HOSPITAL | E36: HDMTD-DAF-CD-2025-0108 | F36: 121 | G36: 2025-04-08 | H36: B1500007916 | I36: $2,515.14 | J36: $121,698.14
A37: 1900 | B37: 24 | C37: SEAN DOMINICANA,SRL | D37: ADQUISICION DE MIDAZOLAM PARA USO DEL HOSPITAL | E37: HDMTD-CAF-CM-2025-0102 | F37: 121 | G37: 2025-01-08 | H37: E450000000098 | J37: $460,000.00
A38: 1904 | B38: 25 | C38: COPEM HOSPICLINIC,SRL | D38: ADQUISICION DE MEDICAMENTOS CONTROLADOS PARA USO DEL HOSPITAL | E38: HDMTD-DAF-CM-2025-0101 | F38: 121 | G38: 2025-01-08 | H38: E450000000126 | J38: $45,200.00
A39: 1908 | B39: 26 | C39: BIO NOA,SRL | D39: ADQUISICION DE REACTIVOS DE EQUIPO DE AUTOQUANT 400,BLOCARE,BIOLYTE Y RAYTO PARA USO DEL HOSPITAL | E39: HDMTD-CCC-PEEX-2025-0008 | F39: 121 | G39: 2025-04-08 | H39: B1500017569 | I39: $7,126.56 | J39: $592,602.56
A40: 1912 | B40: 27 | C40: OBELCA,SRL | D40: ADQUISICION DE SERVICIO DE MANTENIMIENTO DE GENERADORES | E40: HDMTD-DAF-CD-2025-0104 | F40: 121 | G40: 2025-04-08 | H40: B1500000925 | I40: $36,288.00 | J40: $237,888.00
A41: 1916 | B41: 28 | C41: SILVER PHARMA | D41: ADQUISICION DE MEDICAMENTO CONTROLADO | E41: HDMTD-DAF-CM-2025-0101 | F41: 121 | G41: 2025-08-01 | H41: B1500001191 | J41: $45,550.00
A42: 1920 | B42: 29 | C42: GERANFAR,S,R,L | D42: ADQUISICION DE MEDICAMENTOS CONTROLADOS PARA USO DEL HOSPITAL | E42: HDMTDTD-DAF-CM-2025-0101 | F42: 121 | G42: 2025-01-08 | H42: B1500001303 | J42: $50,000.00
A43: 1924 | B43: 30 | C43: SOLUCIONES CORPORATIVAS SOLUCORP | D43: ADQUISICION DE SERVICIOS DE MANTENIMIENTO PARA CONDENSADORES DE CUARTO FRIO DE COCINA | E43: HDMTD-DAF-CD-2025-0103 | F43: 121 | G43: 2025-01-08 | H43: B1500000374 | I43: $12,420.00 | J43: $81,420.00
A44: 1928 | B44: 31 | C44: FEC BIOMEDICAL,SRL | D44: SERVICIO DE MANTENIMIENTO A CENTRO DE MONITOREO AREA DE UCI | E44: HDMTD-DAF-CD-2025-0111 | F44: 121 | G44: 2025-01-08 | H44: B1500000507 | I44: $13,536.00 | J44: $88,736.00
A45: 1932 | B45: 32 | C45: SUPLIMED | D45: ADQUISICION DE INSUMOS PARA USO DEL HOSPITAL | E45: HDMTD-DAF-CM-2025-0070 | F45: 121 | G45: 2025-01-08 | H45: E450000000131 | J45: $6,110.04
A46: 1936 | B46: 33 | C46: GRUPO FARMACEUTICO CAR-M-SRL | D46: ADQUISICION DE LAVETALOL DE 5MG/ML EN AMPOLLAS | E46: HDMTD-DAF-CD-2025-0125 | F46: 121 | G46: 2025-07-08 | H46: E450000000206 | J46: $210,000.00
A47: 1940 | B47: 34 | C47: RAMISOL,SRL | D47: ADQUISICION DE VENCOMICINA 1G PARA USOP EN EL HOSPITAL | E47: HDMTD-DAF-CD-2025-0126 | F47: 121 | G47: 2025-07-06 | H47: E450000000099 | J47: $212,500.00
A48: 1944 | B48: 35 | C48: MEDINA BRAND Y ASOCIADOS,SRL | D48: ADQUISICION DE CARNES PARA USO DEL HOSPITAL | E48: HDMTD-DAF-CM-2025-0087 | F48: 121 | G48: 2025-01-08 | H48: B1500000004 | J48: $86,900.00
A49: 1948 | B49: 36 | C49: VAL-KAMED PHARMA,SRL | D49: ADQUISICION DE CLIDAMICINA PARA USO DEL HOSPITAL | E49: HDMTD-DAF-CD-2025-0122 | F49: 121 | G49: 2025-07-08 | H49: B1500004405 | J49: $246,400.00
A50: 1952 | B50: 37 | C50: TROPIGAS DOMINICANA,SRL | D50: SERVICIO DE LLENADOS DE TANQUES GLP,INSTALADOS EN EL HOSPITAL | E50: HDMTD-CCC-PEEX-2025-0006 | F50: 102 | G50: 2025-01-08 | H50: E450000005458 | J50: $79,320.00
A51: 1957 | B51: 38 | C51: DUMAS PHARMACEUTICALS,SRL | D51: ADQUISICION DE GLUCONATO DE CALCIO PARA USO DEL HOSPITAL | E51: HDMTD-DAF-CD-2025-0123 | F51: 121 | G51: 2025-06-08 | H51: B1500001357 | J51: $126,000.00
A52: 1960 | B52: 39 | C52: MORAMI,SRL | D52: ADQUISICION DE LEVETIRACETAM 500 MG PARA USO EN EL HOSPITAL | E52: HDMTD-DAF-CD-2025 | F52: 121 | G52: 2025-08-08 | H52: B1500006692 | J52: $247,500.00
A53: 1963 | B53: 40 | C53: MEDINA BRAND Y ASOCIADOS,SRL | D53: ADQUISICION DE CARNES PARA USO DEL HOSPITAL | E53: HDMTD-DAF-CM-2025-0087 | F53: 121 | G53: 2025-10-07 | H53: B1500000002 | J53: $55,300.00
A54: 1967 | B54: 41 | C54: FULINSEERVIS | D54: ADQUISICION DE RECETARIOS CLINICOS | E54: HDMTD-DAF-CD-2025-0114 | F54: 121 | G54: 2025-08-07 | H54: B1500000421 | I54: $36,720.00 | J54: $240,720.00
A55: 1977 | B55: 42 | C55: DOOSPHARMA,SRL | D55: ADQUISICION DE ACIDO TRANEXAMICO PARA USO DEL HOSPITAL | E55: HDMTD-DAF-CD-2025-0124 | F55: 121 | G55: 2025-12-08 | H55: B1500000139 | J55: $243,100.00
A56: 1983 | B56: 43 | C56: DOOSPHARMA,SRL | D56: ADQUISICION DE TERNOMETROS DE MERCURIO PARA USO DEL HOSPITAL | E56: HDMTD-DAF-CD-2025-0110 | F56: 102 | G56: 2025-04-08 | H56: B1500000138 | J56: $232,320.00
A57: 1989 | B57: 44 | C57: SUPLIDORES DE PRODUCTOS DIVERSOS SUPRODI,SRL | D57: ADQUISICION DE ALIMENTOS PARA LA COSINA | E57: HDMTD-DAF-CM-2025-0011 | F57: 121 | G57: 2025-01-05 | H57: B1500000102 | I57: $37,786.52 | J57: $320,306.64
A58: 1993 | B58: 45 | C58: RANTORO,SRL | D58: ADQUISICION DE VIVERES Y VEGETALES | E58: HDMTD-DAF-CM-2025-0046 | F58: 121 | G58: 13/8/2025 | H58: B1500000005 | J58: $765,200.00
A59: 1997 | B59: 46 | C59: PROSEMEDINT,SRL | D59: ADQUISICION DE FRUTAS PARA USO DEL HOSPITAL | E59: HDMTD-DAF-CD-2025-0089 | F59: 121 | G59: 13/8/2025 | H59: B1500000006 | J59: $133,800.00
A60: 2001 | B60: 47 | C60: AYUNTAMIENTO DE SANTO DOMINGO NORTE | D60: ADQUISICION DE RECOLECCION DE DESECHOS SOLIDO | F60: 121 | G60: 2023-11-08 | H60: B1500001616 | J60: $25,000.00
A61: 2003 | B61: 48 | C61: AQUATEAM DOMINICANA,SRL | D61: SERVICIO DE MANTENIMIENTO PARA SISTEMA DE POTABILIZACION Y PURIFICACION DE AGUA POTABLE | E61: HDMTD-DAF-CM-2024-0073 | F61: 121 | G61: 2025-05-08 | H61: E45000000003 | I61: $9,450.00 | J61: $61,950.00
A62: 2003 | B62: 49 | C62: AQUATEAM DOMINICANA,SRL | D62: SERVICIO DE MANTENIMIENTO PARA SISTEMA DE POTABILIZACION Y PURIFICACION DE AGUA POTABLE | E62: HDMTD-DAF-CM-2024-0073 | F62: 121 | G62: 2025-05-08 | H62: E45000000004 | I62: $9,450.00 | J62: $61,950.00
A63: 2013 | B63: 50 | C63: PROSERMEDINT,SRL | D63: ADQUISICION DE VEGETALES Y VIVERES PARA USO DEL HOSPITAL | E63: HDMTD-DAF-CD-2025-0075 | F63: 121 | G63: 13/8/2025 | H63: B1500000005 | J63: $105,315.00
A64: 2022 | B64: 51 | C64: RANTORO,SRL | D64: ADQUISICION DE ALIMENTOS DE DESPENSA | E64: HDMTD-DAF-CD-2025-0053 | F64: 121 | G64: 13/85/2025 | H64: B1500000004 | I64: $13,500.00 | J64: $247,350.00
A65: 2026 | B65: 52 | C65: SOLUCORP,SRL | D65: ADQUISICION DE PRODUCTOS DE LIMPIEZA PARA USO DEL HOSPITAL | E65: HDMTD-DAF-CM-2025-0073 | F65: 121 | G65: 2025-01-08 | H65: B1500000375 | I65: $66,621.64 | J65: $436,741.87
A66: 2032 | B66: 53 | C66: GRUPO ANTANCE,SRL | D66: ADQUISICION DE BANCADAS PARA SALA DE ESPERA DE ESTE HOSPITAL | E66: HDMTD-DAF-CD-2025-0121 | F66: 426 | G66: 2025-11-08 | H66: B1500000453 | I66: $32,760.00 | J66: $214,760.00
A67: 2036 | B67: 54 | C67: I M D MEDIC INTER C POR A | D67: ADQUISICION DE DESINFECTANTE DE ALTO NIVEL ,PARA UCI DE ESTE HOPSPITAL | E67: HDMTD-DAF-CD-2025-0093 | F67: 121 | G67: 2025-05-08 | H67: B1500000247 | J67: $196,000.00
A68: 2040 | B68: 55 | C68: SENCOND HAND IMPORTA LEAN | D68: SERVICIO DE REPARACION DE CAMA DE UCI | E68: HDMTD-DAF-CD-2025-0131 | F68: 121 | G68: 2025-08-14 | H68: B1500000041 | I68: $11,160.00 | J68: $73,160.00
A69: 2045 | B69: 56 | C69: SENCOND HAND IMPORTA LEAN | D69: ADQUISICION DE REGULADORES Y CILINDROS PORTATILES PARA USO DEL HOSPITAL | E69: HDMTDT-DAF-CD-2025-0101 | F69: 121 | G69: 2025-06-08 | H69: B1500000040 | I69: $28,794.60 | J69: $188,764.60
A70: 2062 | B70: 57 | C70: SOLUCORP,SRL | D70: SERVICIO DE REPARACION E INSTALACION DE MOTOR DE MANEJADORA DE QUIROFANO | E70: HDMTD-DAF-CD-2025-0133 | F70: 121 | G70: 2025-12-08 | H70: B1500000378 | I70: $25,200.00 | J70: $165,200.00
A71: 2066 | B71: 58 | C71: PROVEEDORES DEL CARIBE PROVECAR SRL | D71: SERVICIO DE REPARACION DE CAMA DE UCI | E71: HDMTD-DAF-CD-2025-0109 | F71: 121 | G71: 2025-06-08 | H71: B1500000298 | I71: $7,272.00 | J71: $47,672.00
A72: 2079 | B72: 59 | C72: ROJAS Y SERRANO SUPPLIES,SRL | D72: ADQUISICION DE PAPEL BOND PARA USO PARA DEL HOSPITAL | E72: HDMTD-DAF-CD-2025-0128 | F72: 121 | G72: 13/8/2025 | H72: B1500001445 | I72: $36,610.56 | J72: $240,002.56
A73: 2082 | B73: 60 | C73: PROGRAMA DE MEDICAMENTOS SENCIALES PROMESE CAL | D73: ADQUISICION DE MEDICAMENTO | E73: N/A | F73: 121 | G73: 2025-08-07 | H73: B1500046202 | J73: $11,160.00
A74: 2082 | B74: 61 | C74: PROGRAMA DE MEDICAMENTOS SENCIALES PROMESE CAL | D74: ADQUISICION DE MEDICAMENTO | E74: N/A | F74: 121 | G74: 2025-08-07 | H74: B1500046203 | J74: $620,842.79
A75: 2082 | B75: 62 | C75: PROGRAMA DE MEDICAMENTOS SENCIALES PROMESE CAL | D75: ADQUISICION DE MEDICAMENTO | E75: N/A | F75: 121 | G75: 2025-08-07 | H75: B15000460226 | J75: $639,481.00
A76: 2082 | B76: 63 | C76: PROGRAMA DE MEDICAMENTOS SENCIALES PROMESE CAL | D76: ADQUISICION DE MEDICAMENTO | E76: N/A | F76: 121 | G76: 2025-10-07 | H76: B1500046348 | J76: $60,692.00
A77: 2082 | B77: 64 | C77: PROGRAMA DE MEDICAMENTOS SENCIALES PROMESE CAL | D77: ADQUISICION DE MEDICAMENTO | E77: N/A | F77: 121 | G77: 14/7/2025 | H77: B1500046434 | J77: $270,966.00
A78: 2082 | B78: 65 | C78: PROGRAMA DE MEDICAMENTOS SENCIALES PROMESE CAL | D78: ADQUISICION DE MEDICAMENTO | E78: N/A | F78: 121 | G78: 17/7/2025 | H78: B1500046603 | J78: $112,909.00
A79: 2082 | B79: 66 | C79: PROGRAMA DE MEDICAMENTOS SENCIALES PROMESE CAL | D79: ADQUISICION DE MEDICAMENTO | E79: N/A | F79: 121 | G79: 25/7/2025 | H79: B1500046850 | J79: $224,735.40
A80: 2082 | B80: 67 | C80: PROGRAMA DE MEDICAMENTOS SENCIALES PROMESE CAL | D80: ADQUISICION DE MEDICAMENTO | E80: N/A | F80: 121 | G80: 25/7/2025 | H80: B1500046854 | J80: $238,504.48
A81: 2089 | B81: 68 | C81: FUMIGACIONES FUMIDEX | D81: CONTRATACION DE SERVICIO DE FUMIGACION | E81: HDMTD-DAF-CM-2024-0110 | F81: 121 | G81: 2025-08-11 | H81: B1500000114 | I81: $36,539.93 | J81: $239,539.53
A82: 2093 | B82: 69 | C82: UVRO SOLUCIONES EMPRESARIALES, SRL | D82: SERVICIO DE ADQUILER DE TRASPORTE | E82: HDMTD-DAF-CD-2025-0105 | F82: 121 | G82: 2025-08-01 | H82: B1500000487 | J82: $21,000.00
A83: 2093 | B83: 70 | C83: UVRO SOLUCIONES EMPRESARIALES, SRL | D83: SERVICIO DE ADQUILER DE TRASPORTE | E83: HDMTD-DAF-CD-2025-0105 | F83: 121 | G83: 2025-08-08 | H83: B1500000490 | J83: $10,500.00
A84: 2093 | B84: 71 | C84: UVRO SOLUCIONES EMPRESARIALES, SRL | D84: SERVICIO DE ADQUILER DE TRASPORTE | E84: HDMTD-DAF-CD-2025-0105 | F84: 121 | G84: 2025-08-14 | H84: B1500000491 | J84: $10,500.00
A85: 2095 | B85: 72 | C85: PROSERMEDINT,SRL | D85: ADQUISICION DE EMBUTIDOS PARA PARA USO DEL HOSPITAL | E85: HDMTD-DAF-CM-2025-0089 | F85: 121 | G85: 14/8/2025 | H85: B1500000007 | J85: $224,475.00
A86: 2101 | B86: 73 | C86: FULINSEERVIS | D86: ADQUISICION DE EMBUTIDOS PARA PARA USO DEL HOSPITAL | E86: HDMTD-DAF-CM-2025-0089 | F86: 121 | G86: 2025-08-15 | H86: B1500000422 | J86: $225,000.00
A87: 2103 | B87: 74 | C87: MEDINA BRAND Y ASOCIADOS,SRL | D87: ADQUISICION DE ALIMENTOS DE DESPENSA | E87: HDMTD-DAF-CM-2025-0072 | F87: 121 | G87: 2025-08-12 | H87: B1500000005 | I87: $20,260.69 | J87: $206,707.45
A88: 2107 | B88: 75 | C88: GRUPO ANTANCE,SRL | D88: ADQUISICION DE DESECHABLES PARA EL HOSPITAL | E88: HDMTD-DAF-CD-2025-0115 | F88: 121 | G88: 2025-01-08 | H88: B1500000444 | I88: $29,365.20 | J88: $192,505.20
A89: 2111 | B89: 76 | C89: PROSERMEDINT,SRL | D89: SERVICIO DE BUFEETE PARA 100 PERSONAS | E89: HDMTD-DAF-CD-2025-0062 | F89: 121 | G89: 2025-01-08 | H89: B1500000003 | I89: $17,928.00 | J89: $117,528.00
A90: 2117 | B90: 77 | C90: BIO NOVA | D90: ADQUISICION DE INSUMO PARA LABORATORIO PARA USO DEL HOSPITAL | E90: HDMTD-DAF-CM-2025-0090 | F90: 121 | G90: 2025-08-11 | H90: B1500017623 | I90: $3,338.82 | J90: $163,841.82
A91: 2122 | B91: 78 | C91: SOLUCORO,SRL | D91: ADQUISICION DE DISCO DVD-R VERMATIN | E91: HDMTD-DAF-CD-2025-0118 | F91: 121 | G91: 2025-01-08 | H91: B1500000376 | I91: $37,125.00 | J91: $243,375.00
A92: 2124 | B92: 79 | C92: RAMISOL,SRL | D92: ADQUISICION DE INSUMOS DE QUIROFANO | E92: HDMTD-DAF-CM-2025-0098 | F92: 121 | G92: 2025-08-01 | H92: E45000000007 | J92: $72,000.00
A93: 2136 | B93: 80 | C93: FARMADAL | D93: ADQUSICION DE ACTIVOS DE EQUIPO | E93: HDMTD-DAF-2025-00267 | F93: 121 | G93: 2025-08-01 | H93: B1500002373 | J93: $160,803.00
F94: TOTAL RD$ | J94: =SUM(J14:J93) -> $14,910,229.17
C97: Licda. Veronica pastranos
C98: Encargado de Contabilidad | E98: Kelvin modesto Segura Herasme
E99: Director Financiero

Sheet ok
